[Event "Titled Tuesday Blitz May 9 Late 2023"]
[White "Stachanczyk, Jacek"]
[Black "Dmitriev, Sergey"]
[WhiteFideId "1116657"]
[BlackFideId "14101785"]
[WhiteElo "2084"]
[BlackElo "2132"]
[Result "1-0"]
[Round "10"]
[TimeControl "180+2"]
[Date "2023.05.09"]
[WhiteClock "0:00:21"]
[BlackClock "0:00:39"]

1. e4 {[%clk 0:03:00]}  d6 {[%clk 0:02:58]} 2. d4 {[%clk 0:02:59]}  e6 {[%clk 0:02:57]} 3. Nc3 {[%clk 0:03:00]}  g6 {[%clk 0:02:57]} 4. f4 {[%clk 0:02:40]}  Bg7 {[%clk 0:02:57]} 5. Nf3 {[%clk 0:02:41]}  Ne7 {[%clk 0:02:57]} 6. Be3 {[%clk 0:02:41]}  O-O {[%clk 0:02:57]} 7. Qd2 {[%clk 0:02:40]}  Nd7 {[%clk 0:02:57]} 8. d5 {[%clk 0:02:36]}  exd5 {[%clk 0:02:52]} 9. exd5 {[%clk 0:02:27]}  Nf5 {[%clk 0:02:49]} 10. Bf2 {[%clk 0:02:24]}  Re8+ {[%clk 0:02:49]} 11. Be2 {[%clk 0:02:24]}  Nc5 {[%clk 0:02:37]} 12. O-O {[%clk 0:02:10]}  Ne4 {[%clk 0:02:30]} 13. Nxe4 {[%clk 0:01:50]}  Rxe4 {[%clk 0:02:28]} 14. Bd3 {[%clk 0:01:47]}  Re8 {[%clk 0:02:26]} 15. c4 {[%clk 0:01:47]}  Qf6 {[%clk 0:02:13]} 16. Rab1 {[%clk 0:01:09]}  Bd7 {[%clk 0:02:10]} 17. g4 {[%clk 0:01:00]}  h5 {[%clk 0:01:26]} 18. gxf5 {[%clk 0:00:40]}  Bxf5 {[%clk 0:01:25]} 19. Bh4 {[%clk 0:00:38]}  g5 {[%clk 0:01:20]} 20. Bxg5 {[%clk 0:00:37]}  Qg6 {[%clk 0:01:20]} 21. Nh4 {[%clk 0:00:37]}  Qh7 {[%clk 0:01:16]} 22. Bxf5 {[%clk 0:00:20]}  Qh8 {[%clk 0:01:12]} 23. Rf2 {[%clk 0:00:16]}  f6 {[%clk 0:01:12]} 24. Rg2 {[%clk 0:00:15]}  fxg5 {[%clk 0:01:12]} 25. Rxg5 {[%clk 0:00:16]}  Qh6 {[%clk 0:01:01]} 26. Kh1 {[%clk 0:00:16]}  Rf8 {[%clk 0:00:57]} 27. Rbg1 {[%clk 0:00:16]}  Rf7 {[%clk 0:00:57]} 28. Be6 {[%clk 0:00:16]}  Rf8 {[%clk 0:00:54]} 29. Rxg7+ {[%clk 0:00:16]}  Qxg7 {[%clk 0:00:49]} 30. Rxg7+ {[%clk 0:00:17]}  Kxg7 {[%clk 0:00:49]} 31. Bxf7 {[%clk 0:00:17]}  Rxf7 {[%clk 0:00:49]} 32. Qg2+ {[%clk 0:00:17]}  Kf8 {[%clk 0:00:49]} 33. Qg6 {[%clk 0:00:18]}  Re7 {[%clk 0:00:48]} 34. Qf6+ {[%clk 0:00:18]}  Ke8 {[%clk 0:00:48]} 35. Qxe7+ {[%clk 0:00:18]}  Kxe7 {[%clk 0:00:49]} 36. Kg2 {[%clk 0:00:19]}  Kf6 {[%clk 0:00:49]} 37. Kf3 {[%clk 0:00:20]}  c6 {[%clk 0:00:48]} 38. Ke4 {[%clk 0:00:21]}  c5 {[%clk 0:00:46]} 39. f5 {[%clk 0:00:20]}  a6 {[%clk 0:00:46]} 40. Nf3 {[%clk 0:00:21]}  b5 {[%clk 0:00:46]} 41. Kf4 {[%clk 0:00:22]}  bxc4 {[%clk 0:00:45]} 42. Nd2 {[%clk 0:00:22]}  h4 {[%clk 0:00:43]} 43. Nxc4 {[%clk 0:00:22]}  h3 {[%clk 0:00:43]} 44. Nxd6 {[%clk 0:00:08]}  a5 {[%clk 0:00:43]} 45. Ne4+ {[%clk 0:00:09]}  Kf7 {[%clk 0:00:42]} 46. Nxc5 {[%clk 0:00:10]}  Ke7 {[%clk 0:00:43]} 47. d6+ {[%clk 0:00:10]}  Kxd6 {[%clk 0:00:42]} 48. Nb7+ {[%clk 0:00:11]}  Kc7 {[%clk 0:00:42]} 49. Nxa5 {[%clk 0:00:12]}  Kd7 {[%clk 0:00:43]} 50. Kg5 {[%clk 0:00:12]}  Ke7 {[%clk 0:00:43]} 51. f6+ {[%clk 0:00:13]}  Kf7 {[%clk 0:00:43]} 52. Nc6 {[%clk 0:00:14]}  Kf8 {[%clk 0:00:42]} 53. a4 {[%clk 0:00:15]}  Kf7 {[%clk 0:00:42]} 54. a5 {[%clk 0:00:16]}  Kf8 {[%clk 0:00:41]} 55. a6 {[%clk 0:00:16]}  Kf7 {[%clk 0:00:41]} 56. a7 {[%clk 0:00:17]}  Ke6 {[%clk 0:00:41]} 57. Kg6 {[%clk 0:00:18]}  Kd7 {[%clk 0:00:40]} 58. a8=Q {[%clk 0:00:18]}  Kd6 {[%clk 0:00:40]} 59. f7 {[%clk 0:00:19]}  Ke6 {[%clk 0:00:39]} 60. Nd4+ {[%clk 0:00:20]}  Ke5 {[%clk 0:00:39]} 61. Qc6 {[%clk 0:00:21]}  Kxd4 {[%clk 0:00:38]} 62. f8=Q {[%clk 0:00:21]}  Ke5 {[%clk 0:00:39]} 63. Qff6# {[%clk 0:00:21]} 1-0


[Site "https://www.chess.com"]

[Event "Titled Tuesday Blitz May 9 Late 2023"]
[White "Burke, Paul"]
[Black "James, Stuart"]
[WhiteFideId "2605767"]
[BlackFideId "7400489"]
[WhiteElo "1916"]
[BlackElo "1950"]
[Result "0-1"]
[Round "10"]
[TimeControl "180+2"]
[Date "2023.05.09"]
[WhiteClock "0:00:25"]
[BlackClock "0:01:15"]

1. e4 {[%clk 0:03:00]}  c5 {[%clk 0:02:56]} 2. Nf3 {[%clk 0:03:00]}  e6 {[%clk 0:02:56]} 3. d4 {[%clk 0:03:00]}  cxd4 {[%clk 0:02:57]} 4. c3 {[%clk 0:03:00]}  Nf6 {[%clk 0:02:56]} 5. Bd3 {[%clk 0:02:57]}  d5 {[%clk 0:02:52]} 6. e5 {[%clk 0:02:56]}  Ne4 {[%clk 0:02:51]} 7. O-O {[%clk 0:02:45]}  dxc3 {[%clk 0:02:46]} 8. Nxc3 {[%clk 0:02:44]}  Nxc3 {[%clk 0:02:45]} 9. bxc3 {[%clk 0:02:43]}  Be7 {[%clk 0:02:44]} 10. Bc2 {[%clk 0:02:32]}  Nc6 {[%clk 0:02:34]} 11. Bf4 {[%clk 0:02:22]}  Bd7 {[%clk 0:02:25]} 12. Re1 {[%clk 0:02:20]}  Rc8 {[%clk 0:02:23]} 13. c4 {[%clk 0:02:00]}  Nb4 {[%clk 0:02:19]} 14. Ba4 {[%clk 0:01:49]}  dxc4 {[%clk 0:02:14]} 15. Bxd7+ {[%clk 0:01:27]}  Qxd7 {[%clk 0:02:13]} 16. Qe2 {[%clk 0:01:27]}  Qd3 {[%clk 0:02:11]} 17. Rad1 {[%clk 0:01:18]}  Qxe2 {[%clk 0:02:07]} 18. Rxe2 {[%clk 0:01:18]}  Nd3 {[%clk 0:01:58]} 19. Be3 {[%clk 0:01:14]}  O-O {[%clk 0:01:51]} 20. Bxa7 {[%clk 0:01:11]}  Rfd8 {[%clk 0:01:45]} 21. Bb6 {[%clk 0:01:04]}  Rd5 {[%clk 0:01:43]} 22. Bd4 {[%clk 0:00:53]}  h6 {[%clk 0:01:33]} 23. g3 {[%clk 0:00:47]}  b5 {[%clk 0:01:31]} 24. Kg2 {[%clk 0:00:42]}  Rcd8 {[%clk 0:01:27]} 25. Bb6 {[%clk 0:00:37]}  Rb8 {[%clk 0:01:20]} 26. Bc7 {[%clk 0:00:34]}  Rc8 {[%clk 0:01:17]} 27. Ba5 {[%clk 0:00:33]}  Nf4+ {[%clk 0:01:15]} 28. Kf1 {[%clk 0:00:25]}  Rxd1+ {[%clk 0:01:15]} 0-1


[Site "https://www.chess.com"]

[Event "Titled Tuesday Blitz May 9 Late 2023"]
[White "Maluco_do_Natal_00"]
[Black "Vargas, Mauricio"]
[BlackFideId "4404572"]
[WhiteElo "2022"]
[BlackElo "1986"]
[Result "1-0"]
[Round "10"]
[TimeControl "180+2"]
[Date "2023.05.09"]
[WhiteClock "0:00:14"]
[BlackClock "0:00:47"]

1. e4 {[%clk 0:03:00]}  c6 {[%clk 0:02:40]} 2. d4 {[%clk 0:02:59]}  d5 {[%clk 0:02:38]} 3. Nc3 {[%clk 0:02:59]}  dxe4 {[%clk 0:02:38]} 4. Nxe4 {[%clk 0:03:00]}  Nf6 {[%clk 0:02:37]} 5. Nxf6+ {[%clk 0:03:00]}  exf6 {[%clk 0:02:38]} 6. c3 {[%clk 0:03:00]}  Bd6 {[%clk 0:02:38]} 7. Qc2 {[%clk 0:02:56]}  O-O {[%clk 0:02:35]} 8. Bd3 {[%clk 0:02:57]}  h6 {[%clk 0:02:33]} 9. Ne2 {[%clk 0:02:56]}  Re8 {[%clk 0:02:30]} 10. Be3 {[%clk 0:02:55]}  Nd7 {[%clk 0:02:28]} 11. O-O-O {[%clk 0:02:50]}  b5 {[%clk 0:02:27]} 12. Rhe1 {[%clk 0:02:32]}  Nb6 {[%clk 0:02:12]} 13. Kb1 {[%clk 0:02:06]}  Be6 {[%clk 0:02:11]} 14. Nf4 {[%clk 0:01:56]}  Nd5 {[%clk 0:02:04]} 15. Nxd5 {[%clk 0:01:46]}  Bxd5 {[%clk 0:02:02]} 16. g3 {[%clk 0:01:29]}  Qa5 {[%clk 0:02:01]} 17. b3 {[%clk 0:01:17]}  Rac8 {[%clk 0:01:47]} 18. Bd2 {[%clk 0:01:05]}  Red8 {[%clk 0:01:40]} 19. c4 {[%clk 0:00:46]}  bxc4 {[%clk 0:01:29]} 20. Bxa5 {[%clk 0:00:45]}  cxd3 {[%clk 0:01:26]} 21. Qxd3 {[%clk 0:00:39]}  Rf8 {[%clk 0:01:26]} 22. f4 {[%clk 0:00:32]}  g6 {[%clk 0:01:17]} 23. Kb2 {[%clk 0:00:26]}  Be6 {[%clk 0:01:13]} 24. Rxe6 {[%clk 0:00:24]}  fxe6 {[%clk 0:01:12]} 25. Qxg6+ {[%clk 0:00:24]}  Kh8 {[%clk 0:01:12]} 26. Qxh6+ {[%clk 0:00:25]}  Kg8 {[%clk 0:01:09]} 27. Qg6+ {[%clk 0:00:24]}  Kh8 {[%clk 0:01:08]} 28. Re1 {[%clk 0:00:18]}  e5 {[%clk 0:00:56]} 29. fxe5 {[%clk 0:00:17]}  fxe5 {[%clk 0:00:55]} 30. Qxd6 {[%clk 0:00:17]}  exd4 {[%clk 0:00:53]} 31. Qxd4+ {[%clk 0:00:16]}  Kh7 {[%clk 0:00:50]} 32. Re7+ {[%clk 0:00:15]}  Kg6 {[%clk 0:00:47]} 33. Qg7+ {[%clk 0:00:14]}  Kf5 {[%clk 0:00:47]} 34. Re5# {[%clk 0:00:14]} 1-0


[Site "https://www.chess.com"]

[Event "Titled Tuesday Blitz May 9 Late 2023"]
[White "Dias, Joao Batista"]
[Black "Prado, Alexandra"]
[WhiteFideId "2108240"]
[BlackFideId "3301346"]
[WhiteElo "1907"]
[BlackElo "1759"]
[Result "1-0"]
[Round "10"]
[TimeControl "180+2"]
[Date "2023.05.09"]
[WhiteClock "0:01:25"]
[BlackClock "0:00:00"]

1. e4 {[%clk 0:03:00]}  c5 {[%clk 0:02:52]} 2. f4 {[%clk 0:02:56]}  g6 {[%clk 0:02:39]} 3. Nf3 {[%clk 0:02:53]}  d6 {[%clk 0:02:39]} 4. c3 {[%clk 0:02:54]}  Nc6 {[%clk 0:02:38]} 5. d3 {[%clk 0:02:55]}  Bg7 {[%clk 0:02:37]} 6. Be2 {[%clk 0:02:55]}  e6 {[%clk 0:02:34]} 7. O-O {[%clk 0:02:56]}  Nge7 {[%clk 0:02:28]} 8. Na3 {[%clk 0:02:56]}  O-O {[%clk 0:02:25]} 9. Nc2 {[%clk 0:02:57]}  d5 {[%clk 0:02:07]} 10. Be3 {[%clk 0:02:51]}  b6 {[%clk 0:01:54]} 11. Qe1 {[%clk 0:02:50]}  Bb7 {[%clk 0:01:53]} 12. Qh4 {[%clk 0:02:46]}  h6 {[%clk 0:01:32]} 13. Rad1 {[%clk 0:02:40]}  h5 {[%clk 0:01:12]} 14. Ng5 {[%clk 0:02:34]}  Nc8 {[%clk 0:01:02]} 15. Qh3 {[%clk 0:02:26]}  d4 {[%clk 0:00:58]} 16. cxd4 {[%clk 0:02:25]}  cxd4 {[%clk 0:00:52]} 17. Bf2 {[%clk 0:02:25]}  e5 {[%clk 0:00:41]} 18. f5 {[%clk 0:02:23]}  Qxg5 {[%clk 0:00:32]} 19. Bh4 {[%clk 0:02:22]}  Qh6 {[%clk 0:00:31]} 20. f6 {[%clk 0:02:17]}  Bh8 {[%clk 0:00:31]} 21. Rf3 {[%clk 0:02:15]}  a5 {[%clk 0:00:27]} 22. Rg3 {[%clk 0:02:15]}  Nd6 {[%clk 0:00:24]} 23. Bg5 {[%clk 0:02:15]}  Qh7 {[%clk 0:00:22]} 24. Bxh5 {[%clk 0:02:05]}  Qxh5 {[%clk 0:00:20]} 25. Bh6 {[%clk 0:02:04]}  Qxh3 {[%clk 0:00:19]} 26. Rxh3 {[%clk 0:02:04]}  Rfe8 {[%clk 0:00:18]} 27. Bg5 {[%clk 0:02:02]}  Re6 {[%clk 0:00:18]} 28. Rf1 {[%clk 0:02:01]}  Ne8 {[%clk 0:00:17]} 29. Rhf3 {[%clk 0:01:59]}  Ba6 {[%clk 0:00:16]} 30. Na3 {[%clk 0:01:57]}  Rc8 {[%clk 0:00:16]} 31. h4 {[%clk 0:01:56]}  Nb4 {[%clk 0:00:16]} 32. h5 {[%clk 0:01:54]}  Nxd3 {[%clk 0:00:17]} 33. h6 {[%clk 0:01:54]}  Nf4 {[%clk 0:00:15]} 34. Kf2 {[%clk 0:01:52]}  Bxf6 {[%clk 0:00:15]} 35. h7+ {[%clk 0:01:51]}  Kxh7 {[%clk 0:00:15]} 36. Rh1+ {[%clk 0:01:52]}  Kg8 {[%clk 0:00:15]} 37. Bxf4 {[%clk 0:01:52]}  exf4 {[%clk 0:00:15]} 38. Rxf4 {[%clk 0:01:52]}  Bg7 {[%clk 0:00:16]} 39. b3 {[%clk 0:01:48]}  d3 {[%clk 0:00:16]} 40. Ke3 {[%clk 0:01:47]}  Nf6 {[%clk 0:00:14]} 41. Nc4 {[%clk 0:01:45]}  Bxc4 {[%clk 0:00:14]} 42. bxc4 {[%clk 0:01:44]}  Rxc4 {[%clk 0:00:15]} 43. Kxd3 {[%clk 0:01:45]}  Rcc6 {[%clk 0:00:14]} 44. e5 {[%clk 0:01:42]}  Nd5 {[%clk 0:00:14]} 45. Rd4 {[%clk 0:01:42]}  Rc3+ {[%clk 0:00:12]} 46. Kd2 {[%clk 0:01:41]}  Rc5 {[%clk 0:00:12]} 47. Rb1 {[%clk 0:01:39]}  Bxe5 {[%clk 0:00:11]} 48. Rg4 {[%clk 0:01:35]}  Bf4+ {[%clk 0:00:11]} 49. Kd3 {[%clk 0:01:35]}  Re3+ {[%clk 0:00:11]} 50. Kd4 {[%clk 0:01:35]}  g5 {[%clk 0:00:04]} 51. g3 {[%clk 0:01:29]}  Rxg3 {[%clk 0:00:03]} 52. Rxg3 {[%clk 0:01:28]}  Bxg3 {[%clk 0:00:04]} 53. Rg1 {[%clk 0:01:27]}  Bf4 {[%clk 0:00:04]} 54. Ke4 {[%clk 0:01:28]}  Kg7 {[%clk 0:00:03]} 55. Kf5 {[%clk 0:01:28]}  Ne3+ {[%clk 0:00:02]} 56. Ke4 {[%clk 0:01:28]}  f5+ {[%clk 0:00:02]} 57. Kd3 {[%clk 0:01:26]}  Rd5+ {[%clk 0:00:00]} 58. Kc3 {[%clk 0:01:25]} 1-0


[Site "https://www.chess.com"]

[Event "Titled Tuesday Blitz May 9 Late 2023"]
[White "Romanchuk, Viktor"]
[Black "Sanchez, Robert"]
[WhiteFideId "14109271"]
[BlackFideId "2034360"]
[WhiteElo "2242"]
[BlackElo "1845"]
[Result "1-0"]
[Round "10"]
[TimeControl "180+2"]
[Date "2023.05.09"]
[WhiteClock "0:00:12"]
[BlackClock "0:00:08"]

1. d4 {[%clk 0:02:58]}  g6 {[%clk 0:02:43]} 2. c4 {[%clk 0:02:57]}  Bg7 {[%clk 0:02:42]} 3. Nf3 {[%clk 0:02:57]}  Nf6 {[%clk 0:02:42]} 4. g3 {[%clk 0:02:57]}  d6 {[%clk 0:02:28]} 5. Bg2 {[%clk 0:02:58]}  O-O {[%clk 0:02:27]} 6. O-O {[%clk 0:02:58]}  Nc6 {[%clk 0:02:28]} 7. Nc3 {[%clk 0:02:58]}  e5 {[%clk 0:02:28]} 8. d5 {[%clk 0:02:58]}  Ne7 {[%clk 0:02:28]} 9. e4 {[%clk 0:02:58]}  h6 {[%clk 0:02:28]} 10. Ne1 {[%clk 0:02:58]}  Nd7 {[%clk 0:02:27]} 11. Nd3 {[%clk 0:02:58]}  f5 {[%clk 0:02:27]} 12. f4 {[%clk 0:02:57]}  exf4 {[%clk 0:02:24]} 13. Nxf4 {[%clk 0:02:53]}  Ne5 {[%clk 0:02:23]} 14. Ne6 {[%clk 0:02:25]}  Bxe6 {[%clk 0:02:16]} 15. dxe6 {[%clk 0:02:26]}  c6 {[%clk 0:02:06]} 16. Qb3 {[%clk 0:02:12]}  Kh7 {[%clk 0:02:01]} 17. Qxb7 {[%clk 0:01:51]}  Rb8 {[%clk 0:01:49]} 18. Qxa7 {[%clk 0:01:49]}  Nxc4 {[%clk 0:01:49]} 19. exf5 {[%clk 0:01:45]}  gxf5 {[%clk 0:01:31]} 20. Ne2 {[%clk 0:01:10]}  Ra8 {[%clk 0:00:58]} 21. Qf2 {[%clk 0:00:45]}  Nxb2 {[%clk 0:00:52]} 22. Rb1 {[%clk 0:00:43]}  Nd3 {[%clk 0:00:51]} 23. Qe3 {[%clk 0:00:34]}  Nxc1 {[%clk 0:00:49]} 24. Nxc1 {[%clk 0:00:34]}  Ra4 {[%clk 0:00:39]} 25. Kh1 {[%clk 0:00:33]}  Qa5 {[%clk 0:00:37]} 26. Rb7 {[%clk 0:00:29]}  Re8 {[%clk 0:00:27]} 27. Qd3 {[%clk 0:00:20]}  d5 {[%clk 0:00:17]} 28. Rxe7 {[%clk 0:00:19]}  Rxe7 {[%clk 0:00:17]} 29. Qxf5+ {[%clk 0:00:19]}  Kh8 {[%clk 0:00:17]} 30. Nd3 {[%clk 0:00:17]}  Qd2 {[%clk 0:00:15]} 31. Nf4 {[%clk 0:00:16]}  Rxa2 {[%clk 0:00:10]} 32. Ng6+ {[%clk 0:00:16]}  Kg8 {[%clk 0:00:11]} 33. Nxe7+ {[%clk 0:00:17]}  Kh8 {[%clk 0:00:11]} 34. Ng6+ {[%clk 0:00:14]}  Kg8 {[%clk 0:00:08]} 35. Qf3 {[%clk 0:00:12]} 1-0


[Site "https://www.chess.com"]

[Event "Titled Tuesday Blitz May 9 Late 2023"]
[White "Kollars, Dmitrij"]
[Black "Zhigalko, Sergei"]
[WhiteFideId "12909572"]
[BlackFideId "13502956"]
[WhiteElo "2584"]
[BlackElo "2626"]
[Result "1-0"]
[Round "11"]
[TimeControl "180+2"]
[Date "2023.05.09"]
[WhiteClock "0:00:07"]
[BlackClock "0:00:00"]

1. e4 {[%clk 0:02:59]}  c5 {[%clk 0:03:00]} 2. Nf3 {[%clk 0:02:58]}  Nc6 {[%clk 0:03:00]} 3. Bb5 {[%clk 0:02:57]}  Nf6 {[%clk 0:03:00]} 4. Nc3 {[%clk 0:02:54]}  Qc7 {[%clk 0:03:01]} 5. O-O {[%clk 0:02:52]}  Nd4 {[%clk 0:03:01]} 6. Re1 {[%clk 0:02:46]}  a6 {[%clk 0:03:01]} 7. Bf1 {[%clk 0:02:42]}  e5 {[%clk 0:03:00]} 8. Nd5 {[%clk 0:02:36]}  Nxd5 {[%clk 0:03:00]} 9. exd5 {[%clk 0:02:37]}  d6 {[%clk 0:03:00]} 10. c3 {[%clk 0:02:36]}  Nxf3+ {[%clk 0:03:01]} 11. Qxf3 {[%clk 0:02:37]}  Be7 {[%clk 0:03:01]} 12. d4 {[%clk 0:02:32]}  O-O {[%clk 0:03:02]} 13. dxe5 {[%clk 0:02:11]}  dxe5 {[%clk 0:03:02]} 14. c4 {[%clk 0:01:45]}  Bd6 {[%clk 0:03:00]} 15. b3 {[%clk 0:01:32]}  Bd7 {[%clk 0:02:57]} 16. Bb2 {[%clk 0:01:31]}  Rae8 {[%clk 0:02:51]} 17. g3 {[%clk 0:01:27]}  f5 {[%clk 0:02:32]} 18. Qc3 {[%clk 0:01:26]}  Re7 {[%clk 0:02:07]} 19. Re2 {[%clk 0:01:23]}  Be8 {[%clk 0:02:07]} 20. Rae1 {[%clk 0:01:15]}  Bh5 {[%clk 0:02:06]} 21. f3 {[%clk 0:01:10]}  e4 {[%clk 0:01:49]} 22. Bg2 {[%clk 0:01:10]}  Rfe8 {[%clk 0:01:27]} 23. Kf2 {[%clk 0:00:55]}  b5 {[%clk 0:01:23]} 24. Qc2 {[%clk 0:00:45]}  b4 {[%clk 0:00:30]} 25. Re3 {[%clk 0:00:44]}  f4 {[%clk 0:00:30]} 26. gxf4 {[%clk 0:00:41]}  Bg6 {[%clk 0:00:20]} 27. f5 {[%clk 0:00:34]}  Bxf5 {[%clk 0:00:05]} 28. fxe4 {[%clk 0:00:34]}  Bxh2 {[%clk 0:00:03]} 29. Ke2 {[%clk 0:00:15]}  Bg6 {[%clk 0:00:03]} 30. Kd1 {[%clk 0:00:14]}  Bf4 {[%clk 0:00:03]} 31. R3e2 {[%clk 0:00:09]}  Bh5 {[%clk 0:00:03]} 32. Qd3 {[%clk 0:00:09]}  Be5 {[%clk 0:00:03]} 33. Bc1 {[%clk 0:00:08]}  Qd6 {[%clk 0:00:03]} 34. Be3 {[%clk 0:00:07]}  Rf7 {[%clk 0:00:03]} 35. Kc2 {[%clk 0:00:07]}  Bxe2 {[%clk 0:00:03]} 36. Rxe2 {[%clk 0:00:08]}  Bc3 {[%clk 0:00:03]} 37. Qd1 {[%clk 0:00:08]}  Be5 {[%clk 0:00:02]} 38. Qg1 {[%clk 0:00:08]}  Ref8 {[%clk 0:00:02]} 39. Bh3 {[%clk 0:00:08]}  Bd4 {[%clk 0:00:02]} 40. Be6 {[%clk 0:00:08]}  Bxe3 {[%clk 0:00:02]} 41. Qxe3 {[%clk 0:00:08]}  Kh8 {[%clk 0:00:02]} 42. e5 {[%clk 0:00:08]}  Qe7 {[%clk 0:00:01]} 43. Bxf7 {[%clk 0:00:09]}  Qxf7 {[%clk 0:00:02]} 44. e6 {[%clk 0:00:09]}  Qf1 {[%clk 0:00:03]} 45. e7 {[%clk 0:00:09]}  Re8 {[%clk 0:00:03]} 46. d6 {[%clk 0:00:09]}  h6 {[%clk 0:00:01]} 47. Qe4 {[%clk 0:00:08]}  Qa1 {[%clk 0:00:01]} 48. d7 {[%clk 0:00:07]}  Qxa2+ {[%clk 0:00:01]} 49. Kc1 {[%clk 0:00:08]}  Qa1+ {[%clk 0:00:01]} 50. Qb1 {[%clk 0:00:07]}  Qc3+ {[%clk 0:00:01]} 51. Qc2 {[%clk 0:00:07]}  Qa1+ {[%clk 0:00:01]} 52. Kd2 {[%clk 0:00:08]}  Qd4+ {[%clk 0:00:01]} 53. Qd3 {[%clk 0:00:08]}  Qb2+ {[%clk 0:00:01]} 54. Ke1 {[%clk 0:00:09]}  Qa1+ {[%clk 0:00:01]} 55. Qd1 {[%clk 0:00:07]}  Qc3+ {[%clk 0:00:01]} 56. Qd2 {[%clk 0:00:07]}  Qg3+ {[%clk 0:00:01]} 57. Kd1 {[%clk 0:00:06]}  Qxb3+ {[%clk 0:00:00]} 58. Qc2 {[%clk 0:00:07]} 1-0


[Site "https://www.chess.com"]

[Event "Titled Tuesday Blitz May 9 Late 2023"]
[White "Pichot, Alan"]
[Black "Pranav, V"]
[WhiteFideId "110973"]
[BlackFideId "25060783"]
[WhiteElo "2573"]
[BlackElo "2515"]
[Result "1-0"]
[Round "11"]
[TimeControl "180+2"]
[Date "2023.05.09"]
[WhiteClock "0:00:25"]
[BlackClock "0:00:07"]

1. e4 {[%clk 0:03:00]}  e5 {[%clk 0:03:00]} 2. Nf3 {[%clk 0:03:01]}  Nc6 {[%clk 0:03:00]} 3. Bb5 {[%clk 0:03:01]}  a6 {[%clk 0:03:01]} 4. Ba4 {[%clk 0:03:02]}  d6 {[%clk 0:03:01]} 5. O-O {[%clk 0:02:56]}  Bd7 {[%clk 0:03:01]} 6. c4 {[%clk 0:02:57]}  g6 {[%clk 0:03:01]} 7. d4 {[%clk 0:02:53]}  exd4 {[%clk 0:02:59]} 8. Bxc6 {[%clk 0:02:39]}  Bxc6 {[%clk 0:02:55]} 9. Nxd4 {[%clk 0:02:38]}  Bg7 {[%clk 0:02:53]} 10. Nxc6 {[%clk 0:02:33]}  bxc6 {[%clk 0:02:53]} 11. Qa4 {[%clk 0:02:32]}  Qd7 {[%clk 0:02:51]} 12. c5 {[%clk 0:02:27]}  dxc5 {[%clk 0:02:36]} 13. Rd1 {[%clk 0:02:25]}  Qe6 {[%clk 0:02:34]} 14. Nc3 {[%clk 0:02:18]}  Ne7 {[%clk 0:02:20]} 15. Nd5 {[%clk 0:02:14]}  Rc8 {[%clk 0:01:40]} 16. Bg5 {[%clk 0:01:59]}  f6 {[%clk 0:01:36]} 17. Be3 {[%clk 0:01:52]}  O-O {[%clk 0:01:01]} 18. Nxe7+ {[%clk 0:01:52]}  Qxe7 {[%clk 0:01:02]} 19. Qxc6 {[%clk 0:01:52]}  Rfe8 {[%clk 0:00:59]} 20. f3 {[%clk 0:01:45]}  f5 {[%clk 0:00:58]} 21. Bxc5 {[%clk 0:01:28]}  Qe6 {[%clk 0:00:53]} 22. Qxe6+ {[%clk 0:01:24]}  Rxe6 {[%clk 0:00:54]} 23. exf5 {[%clk 0:01:24]}  gxf5 {[%clk 0:00:53]} 24. Rd2 {[%clk 0:01:16]}  Rb8 {[%clk 0:00:50]} 25. Ba3 {[%clk 0:01:09]}  c5 {[%clk 0:00:44]} 26. Bxc5 {[%clk 0:01:05]}  Bxb2 {[%clk 0:00:43]} 27. Rad1 {[%clk 0:01:03]}  Be5 {[%clk 0:00:38]} 28. g3 {[%clk 0:00:41]}  Rc8 {[%clk 0:00:35]} 29. Rd8+ {[%clk 0:00:41]}  Rxd8 {[%clk 0:00:34]} 30. Rxd8+ {[%clk 0:00:41]}  Kf7 {[%clk 0:00:35]} 31. Rd7+ {[%clk 0:00:42]}  Kg6 {[%clk 0:00:34]} 32. Kf2 {[%clk 0:00:40]}  Rc6 {[%clk 0:00:30]} 33. Be3 {[%clk 0:00:40]}  Rc3 {[%clk 0:00:27]} 34. f4 {[%clk 0:00:39]}  Bc7 {[%clk 0:00:24]} 35. Bd4 {[%clk 0:00:38]}  Rc4 {[%clk 0:00:17]} 36. Ke3 {[%clk 0:00:37]}  Rc6 {[%clk 0:00:13]} 37. Rg7+ {[%clk 0:00:32]}  Kh6 {[%clk 0:00:13]} 38. Rg5 {[%clk 0:00:33]}  Bb6 {[%clk 0:00:11]} 39. Bxb6 {[%clk 0:00:30]}  Rxb6 {[%clk 0:00:09]} 40. Rxf5 {[%clk 0:00:31]}  Rb2 {[%clk 0:00:09]} 41. Rf6+ {[%clk 0:00:26]}  Kg7 {[%clk 0:00:09]} 42. Rxa6 {[%clk 0:00:25]}  Rxh2 {[%clk 0:00:10]} 43. a4 {[%clk 0:00:24]}  Ra2 {[%clk 0:00:11]} 44. Kf3 {[%clk 0:00:25]}  h5 {[%clk 0:00:10]} 45. f5 {[%clk 0:00:24]}  Kf7 {[%clk 0:00:07]} 46. Kf4 {[%clk 0:00:25]} 1-0


[Site "https://www.chess.com"]